bitfinex/quotes_BTCUSD_20220202
["timestamp","ask_amount","ask_price","bid_price","bid_amount"]
[1643814335591,0.00056666,37676.0,37664.0,0.42672138]
[1643814335792,0.00056666,37676.0,37665.0,0.450798]
[1643814335989,0.00056666,37676.0,37666.0,0.72751938]
[1643814336195,0.00042269,37676.0,37668.0,0.066343]
[1643814336391,0.00042269,37676.0,37666.0,0.42672138]
[1643814336589,0.29439705,37680.0,37666.0,0.42672138]
[1643814337192,0.32987827,37673.0,37666.0,0.42672138]
[1643814337394,0.32987827,37673.0,37662.0,0.132693]
[1643814337395,0.32987827,37673.0,37660.0,0.066359]
[1643814337590,0.0488,37672.0,37657.0,0.33583517]
[1643814338238,0.0488,37672.0,37653.0,0.28590799]
[1643814338239,0.24325892,37670.0,37653.0,0.28590799]
[1643814338444,0.24325892,37670.0,37654.0,0.33635837]
[1643814338445,0.0488,37669.0,37654.0,0.33635837]
[1643814338637,0.0488,37669.0,37654.0,0.34348685]
[1643814339037,0.0488,37669.0,37660.0,0.00030484]
[1643814339239,0.0488,37669.0,37660.0,0.26214413]
[1643814339437,0.0488,37669.0,37660.0,0.00030484]
[1643814340238,0.0488,37669.0,37663.0,0.00030481]
[1643814340637,0.0438,37669.0,37663.0,0.00030481]
[1643814341238,0.0438,37669.0,37655.0,0.36907264]
[1643814341441,0.0192455,37674.0,37664.0,0.29974615]
[1643814341699,0.0192455,37674.0,37663.0,0.00030481]
[1643814341896,0.2837074,37674.0,37672.0,0.0048467]
[1643814342097,0.8988,37673.0,37672.0,0.00385278]
[1643814343398,0.8988,37673.0,37652.0,0.39148098]
[1643814343399,0.00385,37672.0,37652.0,0.39148098]
[1643814343702,0.00385,37672.0,37644.0,0.132761]
[1643814343703,0.31099605,37669.0,37651.0,0.60504481]
[1643814343897,0.00385,37672.0,37655.0,9.032e-05]
[1643814343898,0.0488,37668.0,37655.0,9.032e-05]
[1643814344097,0.0488,37667.0,37662.0,0.21614475]
[1643814344297,0.0488,37667.0,37655.0,9.032e-05]
[1643814344496,0.0488,37667.0,37656.0,0.08799168]
[1643814344700,0.0488,37667.0,37655.0,9.032e-05]
[1643814344898,0.0488,37667.0,37657.0,0.22880789]
[1643814345098,0.0488,37667.0,37658.0,0.34957699]
[1643814345335,0.0488,37667.0,37658.0,0.39957699]
[1643814345536,0.0488,37667.0,37658.0,0.34957699]
[1643814345736,0.0488,37667.0,37655.0,8.42e-05]
[1643814346138,0.0488,37667.0,37658.0,0.26411947]
[1643814346442,0.0488,37667.0,37659.0,0.33227363]
[1643814346443,0.00047594,37663.0,37659.0,0.33227363]
[1643814346637,0.00047594,37663.0,37658.0,0.26411947]
[1643814347238,0.00047594,37663.0,37658.0,0.31411947]
[1643814347435,0.00385,37672.0,37658.0,0.31411947]
[1643814347636,0.00385,37672.0,37659.0,0.34074906]
[1643814347836,0.36846187,37667.0,37654.0,0.28603804]
[1643814348236,0.00385,37672.0,37654.0,0.06216963]
[1643814348437,0.00385,37672.0,37655.0,0.39434594]
[1643814348836,0.00385,37672.0,37661.0,0.20499198]
[1643814349091,0.00385,37672.0,37663.0,0.27105746]
[1643814349289,0.06637,37677.0,37663.0,0.27105746]
[1643814349493,0.1,37683.0,37664.0,0.33389112]
[1643814349891,0.11868989,37683.0,37670.0,0.27879961]
[1643814350088,0.11868989,37683.0,37664.0,0.05]
[1643814350089,0.01868989,37683.0,37664.0,0.8392]
[1643814350289,0.01868989,37683.0,37673.0,0.2921437]
[1643814350489,0.28918492,37678.0,37668.0,0.09102333]
[1643814350688,0.28918492,37678.0,37668.0,0.05]
[1643814350892,0.28918492,37678.0,37664.0,0.8392]
[1643814351092,0.28918492,37678.0,37671.0,0.01928112]
[1643814351288,0.00056592,37675.0,37666.0,0.25849985]
[1643814351489,0.00056592,37675.0,37666.0,0.22611882]
[1643814351696,0.34989652,37672.0,37666.0,0.22611882]
[1643814351891,0.34989652,37672.0,37659.0,0.05]
[1643814352090,0.34989652,37672.0,37658.0,0.05]
[1643814352290,0.34989652,37672.0,37657.0,0.182715]
[1643814352489,0.00056593,37667.0,37662.0,0.27481494]
[1643814352691,0.00056593,37667.0,37655.0,0.00030085]
[1643814352937,0.00056593,37667.0,37661.0,0.24032363]
[1643814353337,0.066366,37674.0,37661.0,0.24032363]
[1643814353538,0.42202077,37680.0,37661.0,0.24032363]
[1643814353741,0.00056594,37666.0,37661.0,0.24032363]
[1643814354138,0.00056594,37666.0,37658.0,0.08251048]
[1643814354538,0.33881802,37671.0,37653.0,0.0011]
[1643814354539,0.43195182,37671.0,37653.0,0.0011]
[1643814354740,0.066371,37674.0,37663.0,0.23221514]
[1643814354941,0.00056594,37664.0,37663.0,0.23221514]
[1643814355139,0.00056594,37664.0,37663.0,0.58301314]
[1643814355340,0.00056594,37664.0,37663.0,0.80422402]
[1643814355639,0.00056594,37664.0,37663.0,0.88711264]
[1643814355842,0.01919627,37678.0,37663.0,0.93711264]
[1643814356042,0.00056594,37665.0,37664.0,0.350798]
[1643814356442,0.00056594,37665.0,37664.0,0.950798]
[1643814356699,0.00024307,37665.0,37664.0,0.950798]
[1643814356896,0.00024307,37665.0,37664.0,1.32787358]
[1643814357096,0.01919627,37678.0,37664.0,1.54421858]
[1643814357297,0.2425,37690.0,37668.0,0.0597053]
[1643814357495,0.00017181,37691.0,37669.0,0.72787358]
[1643814357693,0.00017181,37692.0,37670.0,0.350798]
[1643814357892,0.36033923,37692.0,37685.0,0.26787112]
[1643814358099,0.268,37696.0,37685.0,0.26787112]
[1643814358294,0.268,37696.0,37685.0,1.12e-06]
[1643814358495,0.43957,37695.0,37685.0,1.12e-06]
[1643814358695,0.52080316,37695.0,37682.0,0.21264643]
[1643814358897,0.52080316,37695.0,37682.0,0.26264643]
[1643814359094,0.52080316,37695.0,37688.0,0.2059022]
[1643814359299,0.268,37696.0,37688.0,0.2059022]
[1643814359600,0.268,37696.0,37691.0,0.29167624]
[1643814359601,0.00056587,37693.0,37691.0,0.29167624]
[1643814359799,0.00056587,37693.0,37688.0,0.2059022]
[1643814360101,0.00056587,37693.0,37680.0,0.066322]
[1643814360547,0.268,37696.0,37681.0,0.78239452]
[1643814360748,0.268,37696.0,37686.0,0.07697017]
[1643814360951,0.263,37696.0,37691.0,0.22582655]
[1643814361249,0.132637,37704.0,37692.0,0.35794921]
[1643814361447,0.132637,37704.0,37694.0,0.01]
[1643814361648,0.33181922,37701.0,37694.0,0.01]
[1643814361850,0.32681922,37701.0,37694.0,0.01]
[1643814362252,0.32681922,37701.0,37694.0,0.00782911]
[1643814362849,0.37681922,37701.0,37694.0,0.00782911]
[1643814363854,0.37681922,37701.0,37673.0,1.5038]
[1643814363855,0.00499696,37693.0,37680.0,0.38833468]
[1643814364086,0.05,37696.0,37682.0,0.38833468]
[1643814364283,0.199007,37697.0,37683.0,0.38833468]
[1643814364284,0.05,37688.0,37683.0,0.38833468]
[1643814364483,0.00047601,37688.0,37683.0,0.38833468]
[1643814364685,0.00047601,37688.0,37674.0,0.38833468]
[1643814364889,0.04,37680.0,37674.0,0.38833468]
[1643814365187,0.0446,37679.0,37664.0,0.7388]
[1643814365388,0.0446,37678.0,37665.0,0.17281331]
[1643814365584,0.22156785,37682.0,37663.0,0.164]
[1643814365585,0.04,37676.0,37663.0,0.164]
[1643814365783,0.0446,37675.0,37663.0,0.164]
[1643814365985,0.0446,37675.0,37663.0,0.42999364]
[1643814366185,0.32187865,37670.0,37663.0,0.42999364]
[1643814366383,0.0446,37675.0,37663.0,0.67712918]
[1643814366583,0.0946,37675.0,37663.0,0.42999364]
[1643814366785,0.00047601,37668.0,37663.0,0.42999364]
[1643814366985,0.0446,37667.0,37663.0,0.42999364]
[1643814368040,0.04516882,37667.0,37663.0,0.42999364]
[1643814368439,0.04516882,37667.0,37665.0,0.0789158]
[1643814369040,0.0446,37667.0,37665.0,0.1289158]
[1643814369240,0.00056881,37668.0,37666.0,0.350798]
[1643814369438,0.06636,37676.0,37665.0,0.0789158]
[1643814369439,0.06333063,37676.0,37665.0,0.0789158]
[1643814369837,0.06333063,37676.0,37666.0,0.35579674]
[1643814370040,0.06333063,37676.0,37669.0,0.24568076]
[1643814370638,0.06333063,37676.0,37665.0,0.0789158]
[1643814371039,0.06333063,37676.0,37671.0,0.09285974]
[1643814371239,0.02150192,37678.0,37671.0,0.09285974]
[1643814371689,0.02150192,37678.0,37674.0,0.22949618]
[1643814371893,0.066352,37681.0,37674.0,0.22949618]
[1643814372092,0.066352,37681.0,37678.0,0.08646934]
[1643814372292,0.132699,37685.0,37678.0,0.08646934]
[1643814372493,0.066344,37686.0,37679.0,0.34991031]
[1643814372696,0.29054779,37690.0,37679.0,0.34991031]
[1643814373091,0.29054779,37690.0,37683.0,0.212118]
[1643814373293,0.00227476,37689.0,37687.0,0.08528015]
[1643814373897,0.99517105,37692.0,37687.0,0.08528015]
[1643814374097,0.995,37692.0,37688.0,0.38833468]
[1643814374299,0.00056876,37690.0,37689.0,0.72044345]
[1643814374597,0.00227469,37696.0,37695.0,0.2964229]
[1643814375095,0.06375873,37703.0,37696.0,0.45]
[1643814375350,0.01,37709.0,37699.0,0.24541455]
[1643814375544,0.01,37709.0,37703.0,0.08253722]
[1643814375737,0.4306,37708.0,37703.0,0.08253722]
[1643814375936,0.4306,37708.0,37697.0,0.38833468]
[1643814375937,0.3673341,37706.0,37697.0,0.38833468]
[1643814376238,0.3673341,37706.0,37688.0,0.11934238]
[1643814376239,0.066306,37708.0,37686.0,0.38833468]
[1643814376440,0.066306,37708.0,37687.0,0.38833468]
[1643814376737,0.066306,37708.0,37694.0,0.22480931]
[1643814376936,0.066306,37708.0,37699.0,0.10340764]
[1643814377136,0.29496922,37703.0,37695.0,0.64087733]
[1643814377336,0.29496922,37703.0,37695.0,0.25254265]
[1643814377736,0.00057001,37701.0,37695.0,0.25254265]
[1643814377939,0.33647302,37697.0,37694.0,0.00032193]
[1643814378138,0.00057001,37701.0,37694.0,0.00032193]
[1643814378737,0.00057001,37701.0,37686.0,0.7923]
[1643814378738,0.05,37703.0,37686.0,0.7923]
[1643814378937,0.00057002,37699.0,37694.0,0.00032193]
[1643814379489,0.00057002,37699.0,37694.0,7.823e-05]
[1643814379693,0.04,37697.0,37694.0,7.823e-05]
[1643814379888,0.04,37697.0,37677.0,1.08991421]
[1643814380089,0.04,37693.0,37677.0,0.733]
[1643814380289,0.54927668,37696.0,37677.0,0.733]
[1643814380290,0.0846,37692.0,37677.0,0.733]
[1643814380498,0.0446,37691.0,37677.0,0.010605]
[1643814380694,0.36433492,37680.0,37668.0,1.5759]
[1643814380891,0.45363492,37680.0,37668.0,0.7765]
[1643814381090,0.45363492,37680.0,37669.0,0.20588]
[1643814381291,0.45363492,37680.0,37673.0,9.663e-05]
[1643814381493,0.0946,37680.0,37673.0,9.663e-05]
[1643814381690,0.0446,37680.0,37673.0,0.09893177]
[1643814381890,0.0946,37680.0,37673.0,9.663e-05]
[1643814382191,0.95637,37679.0,37671.0,0.10193]
[1643814382394,0.04,37676.0,37671.0,0.10193]
[1643814382592,0.25016,37677.0,37675.0,0.00032149]
[1643814382844,0.9346,37676.0,37675.0,0.00032149]
[1643814383040,1.32796448,37676.0,37675.0,0.00032149]
[1643814383240,0.9946,37676.0,37675.0,0.00032149]
[1643814383635,0.9946,37676.0,37671.0,0.10193]
[1643814383636,0.04,37672.0,37671.0,0.10193]
[1643814383843,0.0846,37672.0,37671.0,0.10193]
[1643814384036,0.1346,37672.0,37671.0,0.10193]
[1643814384537,0.0446,37672.0,37671.0,0.19752439]
[1643814384937,0.7446,37672.0,37671.0,0.19752439]
[1643814385136,0.7446,37672.0,37671.0,0.10193]
[1643814385337,0.7946,37672.0,37671.0,0.10193]
[1643814385540,0.8946,37672.0,37671.0,0.10193]
[1643814385740,0.8946,37672.0,37669.0,0.002]
[1643814385938,0.7946,37672.0,37669.0,0.002]
[1643814386140,0.0446,37672.0,37671.0,0.0870337]
[1643814386998,0.2946,37672.0,37671.0,0.0870337]
[1643814387196,0.3346,37672.0,37669.0,0.002]
[1643814387401,0.2946,37672.0,37670.0,0.00031818]
[1643814387601,0.3346,37672.0,37670.0,0.00031818]
[1643814387796,0.3846,37672.0,37670.0,0.00031818]
[1643814388196,1.34836732,37671.0,37670.0,0.00031818]
[1643814388401,1.39296732,37671.0,37669.0,0.002]
[1643814388597,0.04,37670.0,37669.0,0.002]
[1643814388796,0.9346,37670.0,37669.0,0.002]
[1643814388999,0.9846,37670.0,37669.0,0.002]
[1643814389197,1.0846,37670.0,37669.0,0.002]
[1643814389397,1.0846,37670.0,37667.0,0.0031]
[1643814389398,0.05,37668.0,37667.0,0.0031]
[1643814389603,0.066404,37667.0,37663.0,0.164]
[1643814389804,0.04,37664.0,37663.0,0.164]
[1643814389999,0.9346,37664.0,37663.0,0.164]
[1643814390203,0.8946,37664.0,37663.0,0.164]
[1643814391046,0.0446,37664.0,37663.0,0.164]
[1643814392042,0.8946,37664.0,37663.0,0.164]
[1643814392445,1.49509631,37664.0,37663.0,0.164]
[1643814392644,0.89,37663.0,37662.0,0.00031387]
[1643814392843,1.47719421,37663.0,37662.0,0.00031387]
[1643814393042,1.47719421,37663.0,37656.0,0.002]
[1643814393043,0.85,37662.0,37656.0,0.002]
[1643814393244,0.55569842,37661.0,37656.0,0.002]
[1643814393444,0.06640462,37660.0,37656.0,0.002]
[1643814393648,0.46613771,37659.0,37656.0,0.002]
[1643814394092,0.51613771,37659.0,37656.0,0.002]
[1643814394489,0.58254271,37659.0,37654.0,0.002]
[1643814394690,0.85,37658.0,37655.0,0.26556]
[1643814394892,0.57724175,37657.0,37655.0,0.5205]
[1643814395094,1.29087572,37656.0,37655.0,0.5205]
[1643814395295,1.29087572,37656.0,37647.0,0.001]
[1643814395296,0.86556,37655.0,37647.0,0.001]
[1643814395495,0.86556,37655.0,37641.0,0.0031]
[1643814395496,0.05,37643.0,37641.0,0.0031]
[1643814395695,1.25172648,37642.0,37641.0,0.0031]
[1643814395893,1.25172648,37642.0,37641.0,0.0001]
[1643814395894,1.34632648,37642.0,37641.0,0.0001]
[1643814396095,0.9946,37642.0,37641.0,0.0001]
[1643814396298,0.0446,37642.0,37641.0,0.0001]
[1643814396696,0.0446,37642.0,37641.0,0.24911285]
[1643814397845,0.0446,37642.0,37641.0,1.00911285]
[1643814398046,0.0164574,37645.0,37641.0,1.05911285]
[1643814398245,0.0164574,37645.0,37644.0,0.01]
[1643814398645,0.0164574,37645.0,37641.0,0.29411285]
[1643814399045,0.0164574,37645.0,37644.0,0.01]
[1643814399445,0.0164574,37645.0,37641.0,0.24911285]
[1643814399844,0.0164574,37645.0,37644.0,0.01]
[1643814400548,5.74e-05,37645.0,37644.0,0.66]
[1643814400746,0.199215,37658.0,37644.0,0.350798]
[1643814400747,0.41969115,37657.0,37644.0,0.350798]
[1643814400948,0.56259868,37658.0,37651.0,0.24418531]
[1643814401348,0.56259868,37658.0,37647.0,0.01]
[1643814401592,0.98509948,37658.0,37644.0,0.0164]
[1643814401887,0.6217158,37658.0,37653.0,0.00031003]
[1643814402087,0.1,37657.0,37653.0,0.00031003]
[1643814402291,0.199215,37658.0,37653.0,0.00031003]
[1643814402889,0.35822008,37656.0,37647.0,0.01]
[1643814403089,0.7,37655.0,37654.0,0.00031002]
[1643814403489,1.12939526,37655.0,37654.0,0.00031002]
[1643814403694,1.37841108,37655.0,37654.0,0.0002287]
[1643814403898,0.9989,37655.0,37654.0,0.0002287]
[1643814404088,0.32956534,37649.0,37644.0,0.0164]
[1643814404290,0.1489,37648.0,37644.0,0.0164]
[1643814404489,0.115324,37648.0,37644.0,0.0164]
[1643814404691,0.0489,37648.0,37644.0,0.0164]
[1643814405341,0.0489,37648.0,37646.0,0.25839873]
[1643814405545,0.0489,37648.0,37644.0,0.01649204]
[1643814406345,0.0489,37648.0,37644.0,0.0164]
[1643814406546,0.0489,37648.0,37644.0,0.29061888]
[1643814406744,0.05,37650.0,37646.0,0.09266696]
[1643814407344,0.05,37650.0,37644.0,0.01649222]
[1643814407742,0.05,37650.0,37644.0,0.29354424]
[1643814407942,0.05,37650.0,37645.0,9.222e-05]
[1643814408945,0.182835,37650.0,37646.0,8.693e-05]
[1643814409389,0.282835,37650.0,37646.0,8.693e-05]
[1643814409594,0.282835,37650.0,37646.0,0.30898311]
[1643814409989,0.282835,37650.0,37644.0,1.0]
[1643814410190,0.282835,37650.0,37646.0,8.693e-05]
[1643814411191,0.282835,37650.0,37644.0,1.56909126]
[1643814411392,0.6948922,37650.0,37646.0,8.693e-05]
[1643814411590,0.282835,37650.0,37646.0,8.693e-05]
[1643814411990,0.0489,37649.0,37646.0,8.693e-05]
[1643814412390,0.066414,37648.0,37644.0,1.29731419]
[1643814412590,0.0489,37647.0,37644.0,1.29731419]
[1643814412846,0.066414,37648.0,37644.0,1.29239465]
[1643814413043,0.066424,37651.0,37647.0,0.01]
[1643814413242,0.066397,37655.0,37649.0,0.01]
[1643814413441,0.02081593,37658.0,37654.0,0.2581274]
[1643814413642,0.01933841,37660.0,37654.0,0.2581274]
[1643814413843,0.01933841,37660.0,37656.0,0.23482077]
[1643814414043,0.01933841,37660.0,37657.0,0.08081662]
[1643814414943,0.21933841,37660.0,37657.0,0.08081662]
[1643814415243,0.21933841,37660.0,37657.0,0.13081662]
[1643814415641,0.2,37660.0,37657.0,0.13081662]
[1643814416042,0.15281,37659.0,37657.0,0.13081662]
[1643814416341,0.4653,37660.0,37657.0,0.13081662]
[1643814416594,0.4653,37660.0,37657.0,0.14142862]
[1643814416794,0.4653,37660.0,37658.0,0.01]
[1643814417596,0.4653,37660.0,37659.0,1.000798]
[1643814417797,0.1342,37660.0,37659.0,1.000798]
[1643814417997,0.0147,37667.0,37666.0,0.2660738]
[1643814417998,0.15251,37667.0,37666.0,0.2660738]
[1643814418197,0.0097,37667.0,37666.0,0.54253953]
[1643814418398,0.0097,37667.0,37657.0,0.060612]
[1643814418598,0.47545005,37668.0,37657.0,0.060612]
[1643814418800,0.32116773,37669.0,37657.0,0.010612]
[1643814419197,1.22750354,37667.0,37666.0,0.01]
[1643814419398,1.75626368,37667.0,37666.0,0.01]
[1643814419604,1.85626368,37667.0,37666.0,0.01]
[1643814419795,0.85,37666.0,37657.0,0.010612]
[1643814419997,0.4681961,37665.0,37657.0,0.010612]
[1643814420449,0.232789,37664.0,37657.0,0.010612]
[1643814420748,0.0489,37663.0,37657.0,0.010612]
[1643814420949,0.43239632,37661.0,37657.0,0.010612]
[1643814421252,0.43239632,37661.0,37657.0,0.000612]
[1643814421253,0.579225,37660.0,37657.0,0.000612]
[1643814421849,0.13068515,37659.0,37657.0,0.000612]
[1643814422255,0.066396,37661.0,37649.0,0.98122354]
[1643814422652,0.066396,37661.0,37654.0,0.07955684]
[1643814422852,0.066396,37661.0,37657.0,0.30808345]
[1643814423252,0.166396,37661.0,37657.0,0.30808345]
[1643814423454,0.166396,37661.0,37657.0,0.30308345]
[1643814423652,0.166396,37661.0,37654.0,0.07955684]
[1643814424113,0.066396,37661.0,37654.0,0.09016884]
[1643814424513,0.44523382,37662.0,37655.0,0.22447119]
[1643814424514,0.066396,37662.0,37655.0,0.22447119]
[1643814424822,0.00189819,37671.0,37656.0,1.00209138]
[1643814425017,0.00189819,37671.0,37669.0,0.07562743]
[1643814425415,0.16059819,37671.0,37669.0,0.07562743]
[1643814425619,0.00047444,37680.0,37669.0,0.07562743]
[1643814425620,2.1796,37677.0,37670.0,1.00378731]
[1643814425815,2.1796,37677.0,37671.0,0.4]
[1643814426014,2.1796,37677.0,37673.0,0.05970821]
[1643814426223,0.00189849,37678.0,37673.0,0.43569753]
[1643814426418,0.00189849,37678.0,37673.0,0.37598932]
[1643814426716,0.00189849,37678.0,37673.0,0.05]
[1643814426915,0.4975,37682.0,37672.0,0.28038882]
[1643814426916,0.49767106,37682.0,37677.0,0.23201336]
[1643814427117,0.49767106,37682.0,37680.0,0.0938503]
[1643814427517,0.4975,37682.0,37680.0,0.0938503]
[1643814427951,0.4975,37682.0,37675.0,0.24]
[1643814429149,0.27724143,37679.0,37676.0,0.09667964]
[1643814429549,0.27724143,37679.0,37675.0,0.24]
[1643814430353,0.10047302,37680.0,37676.0,0.6536781]
[1643814430354,0.00047302,37680.0,37676.0,0.6536781]
[1643814430556,0.066358,37681.0,37670.0,0.37809616]
[1643814430752,0.066358,37681.0,37669.0,0.7762]
[1643814430753,0.00056842,37679.0,37669.0,0.8265181]
[1643814431352,0.00056842,37679.0,37676.0,0.36274858]
[1643814431792,0.168223,37681.0,37676.0,0.36274858]
[1643814431992,0.10187,37678.0,37676.0,0.36274858]
[1643814433595,0.10187,37678.0,37677.0,0.3415949]
[1643814433893,0.00056842,37679.0,37677.0,0.3415949]
[1643814433894,0.00056842,37679.0,37677.0,0.34673732]
[1643814434095,0.4975,37682.0,37676.0,0.68203319]
[1643814434297,0.00056842,37679.0,37676.0,1.02542747]
[1643814434493,0.00056842,37679.0,37676.0,0.68203319]
[1643814435342,0.4975,37682.0,37676.0,0.68203319]
[1643814435742,0.00047328,37679.0,37677.0,0.34650609]
[1643814435942,0.00047328,37679.0,37676.0,0.69263919]
[1643814436443,0.4975,37682.0,37677.0,0.36950916]
[1643814436948,0.26532,37697.0,37681.0,0.15]
[1643814437151,0.23266,37705.0,37681.0,0.15]
[1643814437152,0.15281,37685.0,37683.0,0.99957]
[1643814437351,0.2653,37696.0,37688.0,0.066309]
[1643814437548,0.2653,37696.0,37694.0,0.24261484]
[1643814437850,0.2653,37696.0,37695.0,0.350676]
[1643814438045,0.2653,37696.0,37686.0,0.42702536]
[1643814438244,0.2653,37696.0,37687.0,0.350676]
[1643814438447,0.31348108,37695.0,37690.0,0.05968184]
[1643814438648,0.31348108,37695.0,37684.0,0.7258]
[1643814438846,0.31348108,37695.0,37685.0,0.37702536]
[1643814439090,0.24171448,37689.0,37685.0,0.37702536]
[1643814439293,0.28661821,37696.0,37685.0,0.37702536]
[1643814439495,0.28661821,37696.0,37689.0,0.27502256]
[1643814439692,0.2653,37696.0,37689.0,0.09801325]
[1643814440090,0.35478808,37695.0,37684.0,0.7258]
[1643814440292,0.24204733,37692.0,37684.0,0.7258]
[1643814440495,0.35478808,37695.0,37686.0,0.2668919]
[1643814440692,0.2653,37696.0,37686.0,0.3168919]
[1643814441094,0.2653,37696.0,37693.0,0.10164183]
[1643814441295,0.2653,37696.0,37693.0,0.15164183]
[1643814441498,0.35104934,37700.0,37693.0,0.15164183]
[1643814441694,0.0004715,37696.0,37693.0,0.15164183]
[1643814442193,0.0004715,37696.0,37694.0,0.25976603]
[1643814442595,0.132632,37700.0,37694.0,0.25976603]
[1643814442869,0.132632,37700.0,37693.0,0.14664183]
[1643814442870,0.00056994,37697.0,37693.0,0.14664183]
[1643814443065,0.00056994,37697.0,37693.0,0.04013]
[1643814443260,0.00056994,37697.0,37685.0,0.11936019]
[1643814443460,0.00056994,37697.0,37686.0,0.350676]
[1643814443660,0.00056994,37697.0,37687.0,0.56261496]
[1643814443861,0.4975,37707.0,37696.0,0.23605207]
[1643814444058,0.4975,37707.0,37702.0,0.0796407]
[1643814444258,0.4975,37707.0,37696.0,0.23560207]
[1643814444458,0.2876051,37704.0,37696.0,0.23560207]
[1643814444659,0.2876051,37704.0,37694.0,0.05967206]
[1643814444861,0.28024333,37700.0,37689.0,0.38576184]
[1643814445061,0.27524333,37700.0,37689.0,0.38576184]
[1643814445258,0.27524333,37700.0,37688.0,0.09669268]
[1643814445459,0.27524333,37700.0,37689.0,0.38576184]
[1643814445662,0.28601795,37698.0,37691.0,0.20718731]
[1643814445858,0.28601795,37698.0,37689.0,0.38576184]
[1643814446062,0.28601795,37698.0,37685.0,0.38576184]
[1643814446261,0.28601795,37698.0,37682.0,0.38576184]
[1643814446262,0.0489,37697.0,37682.0,0.38576184]
[1643814446461,0.0004715,37695.0,37685.0,0.38576184]
[1643814446689,0.24379868,37690.0,37686.0,0.20682684]
[1643814446893,0.24379868,37690.0,37685.0,0.43576184]
[1643814447091,0.24379868,37690.0,37681.0,0.25230173]
[1643814447294,0.24379868,37690.0,37676.0,0.7751]
[1643814447295,0.0489,37689.0,37676.0,0.7751]
[1643814447693,0.0489,37689.0,37683.0,0.00032999]
[1643814447694,0.00057023,37687.0,37683.0,0.00032999]
[1643814448792,0.0489,37687.0,37683.0,0.00032999]
[1643814448992,0.04947023,37687.0,37683.0,0.00032999]
[1643814449190,0.14947023,37687.0,37683.0,0.00032999]
[1643814449593,0.9,37686.0,37680.0,0.00593499]
[1643814449793,0.57004681,37681.0,37680.0,0.00593499]
[1643814450196,0.62004681,37681.0,37680.0,0.00593499]
[1643814451743,0.72004681,37681.0,37680.0,0.00593499]
[1643814452344,1.27004681,37681.0,37680.0,0.00593499]
[1643814452543,1.37004681,37681.0,37680.0,0.00593499]
[1643814452747,1.37004681,37681.0,37667.0,0.35197084]
[1643814452748,0.75,37680.0,37667.0,0.35197084]
[1643814452945,0.68640881,37681.0,37667.0,0.47003516]
[1643814452946,0.0489,37679.0,37667.0,0.47003516]
[1643814453147,0.0489,37678.0,37667.0,0.47003516]
[1643814453351,0.0489,37678.0,37667.0,0.10194]
[1643814453747,0.2510256,37671.0,37667.0,0.10194]
[1643814454097,0.3010256,37671.0,37667.0,0.10194]
[1643814454598,0.3499256,37671.0,37667.0,0.10194]
[1643814454798,0.3499256,37671.0,37666.0,0.0031]
[1643814454799,0.2999256,37671.0,37666.0,0.0031]
[1643814455401,0.0489,37671.0,37666.0,0.0031]
[1643814455598,0.0489,37671.0,37667.0,0.26627718]
[1643814456200,0.0489,37671.0,37667.0,0.31627718]
[1643814456400,2.0,37681.0,37667.0,0.31627718]
[1643814456401,2.0,37681.0,37668.0,0.3535739]
[1643814456599,2.0,37681.0,37669.0,0.48533184]
[1643814456799,2.0,37681.0,37679.0,0.25282833]
[1643814457196,2.0,37681.0,37679.0,0.29782833]
[1643814457197,1.995,37681.0,37679.0,0.29782833]
[1643814457401,1.995,37681.0,37680.0,0.40238751]
[1643814457598,1.995,37681.0,37679.0,0.29782833]
[1643814458241,1.995,37681.0,37677.0,0.066331]
[1643814458546,1.985,37681.0,37679.0,0.25900882]
[1643814458740,1.985,37681.0,37679.0,0.35770968]
[1643814459141,1.985,37681.0,37679.0,0.40770968]
[1643814459741,1.985,37681.0,37679.0,0.26055295]
[1643814460141,1.985,37681.0,37679.0,0.22115795]
[1643814460542,1.985,37681.0,37679.0,0.21055295]
[1643814460742,1.985,37681.0,37680.0,0.79741656]
[1643814461147,1.985,37681.0,37680.0,1.09741656]
[1643814461346,1.985,37681.0,37680.0,1.44809256]
[1643814461993,1.985,37681.0,37680.0,1.14809256]
[1643814462391,1.985,37681.0,37680.0,1.31441456]
[1643814462692,1.98364201,37681.0,37680.0,1.31441456]
[1643814463190,1.98364201,37681.0,37680.0,0.96798458]
[1643814463389,1.98364201,37681.0,37680.0,0.066322]
[1643814463592,1.98364201,37681.0,37678.0,0.00032732]
[1643814464288,1.98364201,37681.0,37672.0,0.35102253]
[1643814464289,2.98364201,37681.0,37672.0,0.35102253]
[1643814464491,2.98364201,37681.0,37678.0,0.00032733]
[1643814464692,0.24573604,37679.0,37678.0,0.00032733]
[1643814465362,0.24573604,37679.0,37670.0,0.30279383]
[1643814465562,0.05,37679.0,37670.0,0.30279383]
[1643814465759,2.98364201,37681.0,37677.0,0.00032733]
[1643814466159,2.97364201,37681.0,37677.0,0.00032733]
[1643814466559,2.97364201,37681.0,37673.0,0.48157143]
[1643814466560,2.97364201,37681.0,37676.0,0.30153668]
[1643814466959,2.97364201,37681.0,37677.0,0.00032733]
[1643814467958,2.97364201,37681.0,37676.0,0.3831936]
[1643814467959,2.97364201,37681.0,37679.0,0.24054875]
[1643814469195,2.97364201,37681.0,37676.0,0.4495286]
[1643814469395,2.97364201,37681.0,37678.0,0.00032732]
[1643814469797,1.0,37679.0,37678.0,0.00032732]
[1643814470399,1.05,37679.0,37669.0,0.132678]
[1643814470703,1.05,37679.0,37666.0,0.0031]
[1643814470899,0.26888079,37677.0,37668.0,0.23990041]
[1643814471099,0.26888079,37677.0,37669.0,0.28344446]
[1643814471403,0.26888079,37677.0,37668.0,0.23990041]
[1643814471605,0.31888079,37677.0,37666.0,0.0031]
[1643814472000,0.41301997,37676.0,37666.0,0.0031]
[1643814472201,0.41301997,37676.0,37666.0,0.013707]
[1643814472401,0.31888079,37677.0,37666.0,0.013707]
[1643814472851,0.26888079,37677.0,37666.0,0.013707]
[1643814473043,0.26888079,37677.0,37671.0,0.29830523]
[1643814473244,1.0,37679.0,37671.0,0.29830523]
[1643814473843,1.05,37679.0,37666.0,0.34953464]
[1643814474043,1.05,37679.0,37673.0,0.00032659]
[1643814474648,1.0,37679.0,37673.0,0.00032659]
[1643814474845,0.29607697,37678.0,37673.0,0.00032659]